bitfinex-derivatives/quotes_BTCF0:USTF0_20251115
["timestamp","ask_amount","ask_price","bid_price","bid_amount"]
[1763228475178,0.40422,96053.0,96052.0,0.02491609]
[1763228475469,0.3608,96053.0,96052.0,0.04739609]
[1763228475672,0.02138313,96062.0,96061.0,0.04458]
[1763228475869,0.04259313,96062.0,96061.0,0.0221]
[1763228476067,0.04233,96053.0,96052.0,0.16861388]
[1763228476269,0.04233,96053.0,96052.0,0.04673609]
[1763228476869,0.04133,96053.0,96052.0,0.04573609]
[1763228478264,0.04133,96053.0,96052.0,0.04673609]
[1763228481670,0.04133,96053.0,96052.0,0.00215609]
[1763228482371,0.41264226,96053.0,96052.0,0.00215609]
[1763228482692,0.41264226,96053.0,96019.0,0.0503233]
[1763228482693,0.05517,96047.0,96023.0,0.3608]
[1763228482871,0.05517,96047.0,96040.0,0.12187779]
[1763228482872,0.04233,96041.0,96040.0,0.12187779]
[1763228483073,0.04233,96041.0,96023.0,0.3608]
[1763228483074,0.006,96040.0,96031.0,0.16645779]
[1763228483274,0.04233,96032.0,96031.0,0.16645779]
[1763228483472,0.04133,96032.0,96031.0,0.04458]
[1763228483881,0.04233,96024.0,96023.0,0.3829]
[1763228484175,0.02012,96024.0,96023.0,0.40538]
[1763228484675,0.04133,96024.0,96023.0,0.40538]
[1763228484881,0.05433,96024.0,96023.0,0.3608]
[1763228485064,0.04233,96023.0,96022.0,0.00015619]
[1763228485264,0.04133,96018.0,96010.0,0.12187779]
[1763228485474,0.05433,96016.0,96010.0,0.12187779]
[1763228485665,0.04233,96011.0,96010.0,0.12187779]
[1763228485864,0.04233,96011.0,95984.0,0.01286]
[1763228485865,0.02012,95985.0,95984.0,0.05744]
[1763228486065,0.01912,95985.0,95984.0,0.05744]
[1763228486465,0.01820157,95985.0,95984.0,0.05744]
[1763228486670,8.157e-05,95985.0,95984.0,0.05744]
[1763228486870,0.04233,95994.0,95993.0,0.04458]
[1763228487066,0.40313,96003.0,96002.0,0.04458]
[1763228487775,0.40321328,96003.0,96002.0,0.04458]
[1763228487975,0.36088328,96003.0,96002.0,0.04458]
[1763228488273,0.38268328,96003.0,96002.0,0.04458]
[1763228488478,0.40455328,96003.0,96002.0,0.04458]
[1763228489072,0.40555328,96003.0,96002.0,0.04458]
[1763228489278,0.40655328,96003.0,96002.0,0.04458]
[1763228489477,0.04575328,96003.0,96002.0,0.04458]
[1763228489676,0.04475328,96003.0,96002.0,0.04458]
[1763228489976,0.04575328,96003.0,96002.0,0.04458]
[1763228490682,0.04367,95991.0,95990.0,0.11460199]
[1763228490879,0.04486803,95990.0,95989.0,0.40435]
[1763228491881,0.00119803,95990.0,95989.0,0.40435]
[1763228492587,0.00219803,95990.0,95989.0,0.40435]
[1763228492771,0.04586803,95990.0,95989.0,0.40435]
[1763228492970,0.04486803,95990.0,95989.0,0.40435]
[1763228493181,0.04586803,95990.0,95989.0,0.40435]
[1763228493477,0.04686803,95990.0,95989.0,0.40435]
[1763228493685,0.04686803,95990.0,95980.0,0.11460199]
[1763228493686,0.00319803,95990.0,95984.0,0.04355]
[1763228493877,0.04367,95985.0,95984.0,0.04355]
[1763228494883,0.04367,95985.0,95984.0,0.022]
[1763228495278,0.04467,95985.0,95984.0,0.022]
[1763228496079,0.04367,95981.0,95980.0,0.02373267]
[1763228496280,0.04374464,95981.0,95980.0,0.04528267]
[1763228499879,0.04374464,95981.0,95980.0,0.02373267]
[1763228500074,0.04374464,95981.0,95980.0,0.04528267]
[1763228500075,7.464e-05,95981.0,95980.0,0.04528267]
[1763228501385,0.04374464,95981.0,95980.0,0.04528267]
[1763228501778,7.464e-05,95981.0,95980.0,0.04528267]
[1763228505990,0.00015628,95990.0,95989.0,0.04355]
[1763228506179,0.02187,96012.0,96002.0,0.11460199]
[1763228506383,0.04367,96003.0,96002.0,0.04355]
[1763228506791,0.40447,96014.0,96013.0,0.04355]
[1763228506985,8.295e-05,96014.0,96013.0,0.04355]
[1763228507178,0.3608,96030.0,96010.0,0.00173267]
[1763228507179,0.3608,96030.0,96029.0,0.04355]
[1763228507380,0.40566803,96030.0,96029.0,0.04355]
[1763228507590,0.36199803,96030.0,96029.0,0.04355]
[1763228509088,0.00119803,96030.0,96029.0,0.04355]
[1763228511684,0.00219803,96030.0,96029.0,0.04355]
[1763228512596,0.02399803,96030.0,96029.0,0.04355]
[1763228514090,0.04586803,96030.0,96029.0,0.04355]
[1763228514296,0.04367,96022.0,96021.0,0.41807]
[1763228516690,0.04367,96021.0,96020.0,0.00173267]
[1763228517398,0.04367,96021.0,96020.0,0.02373267]
[1763228518390,0.04313,96013.0,96012.0,0.20399533]
[1763228518590,0.04313,96013.0,96012.0,0.04407]
[1763228522094,0.04313,96011.0,96010.0,0.00173267]
[1763228522295,0.40393,96011.0,96010.0,0.00173267]
[1763228523493,0.40393,96011.0,96010.0,0.00273267]
[1763228523799,0.04313,96005.0,96004.0,0.04422628]
[1763228524599,0.3608,96011.0,96004.0,0.02123628]
[1763228524797,0.00015628,96014.0,96013.0,0.04407]
[1763228524996,0.01393,96048.0,96035.0,0.04407]
[1763228524997,0.04313,96036.0,96035.0,0.04407]
[1763228525202,0.00219803,96040.0,96039.0,0.05758]
[1763228525695,0.012,96056.0,96039.0,0.05758]
[1763228525696,0.02187,96045.0,96044.0,0.04407]
[1763228526099,0.04328618,96054.0,96053.0,0.04407]
[1763228526297,0.06581196,96054.0,96053.0,0.04407]
[1763228526493,0.06581196,96054.0,96048.0,0.01351]
[1763228526494,0.00219803,96050.0,96048.0,0.04407]
[1763228526802,0.04313,96049.0,96048.0,0.05758]
[1763228529291,0.04413,96049.0,96048.0,0.05758]
[1763228530200,0.04513,96049.0,96048.0,0.05758]
[1763228535406,0.067697,96049.0,96048.0,0.05758]
[1763228536106,0.066697,96049.0,96048.0,0.05758]
[1763228536318,0.067697,96049.0,96048.0,0.05758]
[1763228536995,0.066697,96049.0,96048.0,0.05758]
[1763228537405,0.067697,96049.0,96048.0,0.05758]
[1763228537697,0.024567,96049.0,96048.0,0.05758]
[1763228539498,0.023567,96049.0,96048.0,0.41838]
[1763228539697,0.0218343,96049.0,96048.0,0.41838]
[1763228539900,0.002,96049.0,96048.0,0.5225731]
[1763228540691,0.002,96049.0,96048.0,0.41838]
[1763228540904,0.001,96049.0,96048.0,0.41838]
[1763228541204,0.002,96049.0,96048.0,0.41838]
[1763228542407,0.001,96049.0,96048.0,0.41838]
[1763228542610,0.002,96049.0,96048.0,0.41838]
[1763228542902,0.001,96049.0,96048.0,0.41838]
[1763228543106,0.00015618,96054.0,96053.0,0.04417]
[1763228543504,0.04324618,96054.0,96053.0,0.04417]
[1763228543706,0.04324618,96054.0,96053.0,0.02116]
[1763228543907,0.04309,96045.0,96044.0,0.20409533]
[1763228544210,0.04309,96045.0,96044.0,0.04417]
[1763228545408,0.04309,96045.0,96044.0,0.07217617]
[1763228546094,0.04309,96045.0,96044.0,0.04417]
[1763228548808,0.04309,96045.0,96044.0,0.07217617]
[1763228550706,0.04309,96045.0,96044.0,0.04417]
[1763228552306,0.04405618,96054.0,96053.0,0.0438]
[1763228553310,0.04505618,96054.0,96053.0,0.0438]
[1763228554702,0.04605618,96054.0,96053.0,0.0438]
[1763228555302,0.04505618,96054.0,96053.0,0.07190685]
[1763228555513,0.00215618,96054.0,96053.0,0.07190685]
[1763228555716,0.00215618,96054.0,96053.0,0.0438]
[1763228555905,0.00115618,96054.0,96053.0,0.0438]
[1763228556109,0.00215618,96054.0,96053.0,0.08115257]
[1763228556309,0.00215618,96054.0,96053.0,0.0438]
[1763228557706,0.00115618,96054.0,96053.0,0.0438]
[1763228558009,0.00215618,96054.0,96053.0,0.0438]
[1763228558214,0.00215618,96054.0,96053.0,0.08126229]
[1763228558710,0.00215618,96054.0,96053.0,0.0438]
[1763228559909,0.00215618,96054.0,96053.0,0.08126036]
[1763228560111,0.00215618,96054.0,96053.0,0.0438]
[1763228560416,0.00215618,96054.0,96053.0,0.08125849]
[1763228563917,0.04605618,96054.0,96053.0,0.08125849]
[1763228564114,0.3608,96074.0,96073.0,0.0438]
[1763228564324,0.0439,96079.0,96078.0,0.05752]
[1763228565615,0.0459,96079.0,96078.0,0.05752]
[1763228566119,0.0479,96079.0,96078.0,0.05752]
[1763228566427,0.0479,96079.0,96078.0,0.08561242]
[1763228567219,0.0479,96079.0,96078.0,0.05752]
[1763228567916,0.0459,96079.0,96078.0,0.05752]
[1763228568116,0.0449,96079.0,96078.0,0.05752]
[1763228568317,0.0469,96079.0,96078.0,0.05752]
[1763228568919,0.0459,96079.0,96078.0,0.05752]
[1763228569119,0.0469,96079.0,96078.0,0.05752]
[1763228569916,0.0469,96079.0,96077.0,0.02809242]
[1763228570115,0.0439,96075.0,96074.0,0.02809242]
[1763228570419,0.0439,96075.0,96074.0,0.07189242]
[1763228571425,0.0449,96075.0,96074.0,0.07189242]
[1763228571821,0.0449,96075.0,96074.0,0.0438]
[1763228572022,0.0459,96075.0,96074.0,0.0438]
[1763228577415,0.002,96075.0,96074.0,0.07189242]
[1763228577639,0.36106018,96086.0,96085.0,0.0438]
[1763228577640,0.04416018,96086.0,96085.0,0.0438]
[1763228579414,0.04616018,96086.0,96085.0,0.0438]
[1763228580026,0.04816018,96086.0,96085.0,0.0438]
[1763228582433,0.00426018,96086.0,96085.0,0.0438]
[1763228582627,0.05036018,96086.0,96085.0,0.0438]
[1763228587729,0.02535062,96086.0,96085.0,0.0438]
[1763228590137,0.00219803,96090.0,96087.0,0.04335]
[1763228591540,0.00215618,96088.0,96087.0,0.04335]
[1763228591739,0.04740618,96088.0,96087.0,0.04335]
[1763228592242,0.04940618,96088.0,96087.0,0.04335]
[1763228596737,0.04740618,96088.0,96087.0,0.04335]
[1763228596944,0.04740618,96088.0,96081.0,0.40441]
[1763228596945,0.04361,96082.0,96081.0,0.40441]
[1763228597636,0.00215618,96088.0,96081.0,0.3608]
[1763228597838,0.00215618,96088.0,96087.0,0.04361]
[1763228597839,0.04576618,96088.0,96087.0,0.04361]
[1763228598343,0.04476618,96088.0,96087.0,0.04361]
[1763228599238,0.04576618,96088.0,96087.0,0.04361]
[1763228600847,0.04361,96082.0,96081.0,0.3608]
[1763228601045,0.04361,96082.0,96081.0,0.40441]
[1763228605450,0.04361,96082.0,96081.0,0.44186656]
[1763228606447,0.04361,96082.0,96081.0,0.40441]
[1763228611865,0.04361,96082.0,96081.0,0.04361]
[1763228613065,0.04361,96082.0,96081.0,0.08111041]
[1763228613260,0.04449,96079.0,96078.0,0.06048041]
[1763228613459,0.00219803,96080.0,96076.0,0.03750041]
[1763228613663,0.04449,96077.0,96076.0,0.02298]
[1763228614062,0.04449,96077.0,96076.0,0.04582]
[1763228614364,0.04449,96075.0,96073.0,0.03750041]
[1763228614570,0.04449,96074.0,96073.0,0.06048041]
[1763228614866,0.04449,96074.0,96073.0,0.08332041]
[1763228615762,0.40529,96078.0,96077.0,0.04582]
[1763228616458,0.3608,96078.0,96077.0,0.04582]
[1763228616654,0.00219803,96080.0,96079.0,0.04582]
[1763228627079,0.02474803,96080.0,96079.0,0.04582]
[1763228627372,0.00219803,96080.0,96079.0,0.04582]
[1763228629277,0.00219803,96080.0,96078.0,0.01374]
[1763228629278,0.39817545,96100.0,96095.0,0.01374]
[1763228629469,0.3608,96113.0,96104.0,0.04582]
[1763228629470,0.03737545,96106.0,96104.0,0.04582]
[1763228629665,0.3608,96119.0,96100.0,0.01374]
[1763228629666,0.02255,96109.0,96108.0,0.04582]
[1763228630066,0.00219803,96110.0,96109.0,0.04582]
[1763228630378,0.02755,96116.0,96115.0,0.04582]
[1763228630676,0.02755,96116.0,96115.0,0.07389198]
[1763228630865,0.005,96116.0,96115.0,0.04582]
[1763228631070,0.005,96116.0,96115.0,0.40662]
[1763228631475,0.00015513,96119.0,96118.0,0.04582]
[1763228631781,0.00026008,96126.0,96125.0,0.04582]
[1763228633871,0.00226008,96126.0,96125.0,0.04582]
[1763228636974,0.04675008,96126.0,96125.0,0.04582]
[1763228637901,0.02481008,96126.0,96125.0,0.04582]
[1763228642578,0.04675008,96126.0,96125.0,0.04582]
[1763228643485,0.02481008,96126.0,96125.0,0.04582]
[1763228643986,0.04604008,96126.0,96125.0,0.04582]
[1763228644681,0.40684008,96126.0,96125.0,0.04582]
[1763228644887,0.04302,96121.0,96120.0,0.04523]
[1763228645688,0.04302,96121.0,96120.0,0.05798]
[1763228651987,0.36106008,96126.0,96125.0,0.04587]
[1763228652390,0.00026008,96126.0,96125.0,0.04587]
[1763228652686,0.00026008,96126.0,96125.0,0.40667]
[1763228653084,0.00226008,96126.0,96125.0,0.40667]
[1763228654896,0.00126008,96126.0,96125.0,0.40667]
[1763228655296,0.00126008,96126.0,96125.0,0.43462335]
[1763228655782,0.00226008,96126.0,96125.0,0.43462335]
[1763228655988,0.00326008,96126.0,96125.0,0.43462335]
[1763228656190,0.00326008,96126.0,96125.0,0.40667]
[1763228656493,0.00126008,96126.0,96125.0,0.40667]
[1763228657592,0.00226008,96126.0,96125.0,0.40667]
[1763228658198,0.00126008,96126.0,96125.0,0.40667]
[1763228658399,0.00226008,96126.0,96125.0,0.40667]
[1763228660399,0.00226008,96126.0,96125.0,0.46246264]
[1763228661791,0.00226008,96126.0,96125.0,0.40667]
[1763228663101,0.00226008,96126.0,96125.0,0.42025]
[1763228665001,0.00047897,96126.0,96125.0,0.47604264]
[1763228668993,0.00047897,96126.0,96125.0,0.42025]
[1763228671606,0.00047897,96126.0,96125.0,0.47604264]
[1763228673503,0.00047897,96126.0,96125.0,0.42025]
[1763228674401,0.3608,96148.0,96146.0,0.04431]
[1763228674402,0.02237,96147.0,96146.0,0.04431]
[1763228674603,0.0443,96147.0,96146.0,0.04431]
[1763228675605,0.0473,96147.0,96146.0,0.04431]
[1763228679902,0.0443,96143.0,96142.0,0.02808712]
[1763228680092,0.0443,96143.0,96137.0,0.20011564]
[1763228680093,0.0443,96142.0,96141.0,0.02808712]
[1763228680291,0.0443,96142.0,96137.0,0.00015609]
[1763228680496,0.003,96147.0,96137.0,0.04446609]
[1763228680497,0.4051,96138.0,96137.0,0.04446609]
[1763228681701,0.4061,96138.0,96137.0,0.04446609]
[1763228682308,0.4071,96138.0,96137.0,0.04446609]
[1763228686704,0.4071,96138.0,96137.0,0.00015609]
[1763228693417,0.44450694,96138.0,96137.0,0.00015609]
[1763228695319,0.4071,96138.0,96137.0,0.00015609]
[1763228695519,0.4071,96138.0,96137.0,0.02337609]
[1763228696122,0.4071,96138.0,96137.0,0.00015609]
[1763228697815,0.4071,96138.0,96137.0,0.04446609]
[1763228698216,0.0463,96138.0,96137.0,0.04446609]
[1763228698620,0.002,96138.0,96137.0,0.04446609]
[1763228700220,0.0248,96138.0,96137.0,0.04446609]
[1763228701121,0.002,96138.0,96137.0,0.04446609]
[1763228703127,0.002,96138.0,96137.0,0.07254206]
[1763228703514,0.05092,96156.0,96155.0,0.05579]
[1763228703728,0.05092,96156.0,96155.0,0.04272]
[1763228703927,0.05092,96156.0,96155.0,0.05579]
[1763228703928,0.0278,96156.0,96155.0,0.05579]
[1763228704118,0.005,96156.0,96155.0,0.05579]
[1763228704924,0.05292,96156.0,96155.0,0.05579]
[1763228705818,0.05492,96156.0,96155.0,0.05579]
[1763228709322,0.009,96156.0,96155.0,0.05579]
[1763228709626,0.0318,96156.0,96155.0,0.05579]
[1763228709826,0.05492,96156.0,96155.0,0.05579]
[1763228710824,0.05292,96156.0,96155.0,0.05579]
[1763228711138,0.05292,96156.0,96146.0,0.27187332]
[1763228711139,0.04592,96147.0,96146.0,0.04272]
[1763228712426,0.04567803,96150.0,96149.0,0.04322]
[1763228713632,0.04667803,96150.0,96149.0,0.04322]
[1763228714634,0.04767803,96150.0,96149.0,0.04322]
[1763228719438,0.04348,96141.0,96140.0,0.29396332]
[1763228719629,0.04348,96141.0,96140.0,0.04322]
[1763228720535,0.04448,96141.0,96140.0,0.04322]
[1763228720932,0.04448,96141.0,96140.0,0.05687]
[1763228722038,0.04348,96138.0,96137.0,0.00015609]
[1763228722536,0.04348,96132.0,96131.0,0.12189963]
[1763228722733,0.04348,96132.0,96123.0,0.38887406]
[1763228722734,0.04348,96124.0,96123.0,0.40402]
[1763228723158,0.04348,96116.0,96115.0,0.03744949]
[1763228723436,0.04348,96116.0,96115.0,0.04322]
[1763228723437,0.40428,96116.0,96115.0,0.04322]
[1763228723738,0.3608,96116.0,96115.0,0.04322]
[1763228724238,0.38232,96116.0,96115.0,0.04322]
[1763228724632,0.40428,96116.0,96115.0,0.04322]
[1763228725439,0.40428,96116.0,96115.0,0.04422]
[1763228725937,0.3608,96124.0,96120.0,0.01365]
[1763228726148,0.00015578,96125.0,96124.0,0.04322]
[1763228726440,0.3608,96135.0,96134.0,0.04322]
[1763228726635,0.3608,96135.0,96134.0,0.07125071]
[1763228729343,0.3608,96135.0,96134.0,0.04322]
[1763228730942,0.40438,96143.0,96142.0,0.04483]
[1763228732334,0.40538,96143.0,96142.0,0.04483]
[1763228732735,0.40638,96143.0,96142.0,0.04483]
[1763228737938,0.40638,96143.0,96142.0,0.07286052]
[1763228739242,0.40638,96143.0,96142.0,0.04483]
[1763228742446,0.40638,96143.0,96142.0,0.07287318]
[1763228743648,0.40638,96143.0,96142.0,0.04483]
[1763228759863,0.04324,96142.0,96141.0,0.03737428]
[1763228760164,0.3628,96143.0,96133.0,0.000156]
[1763228760165,0.04324,96139.0,96138.0,0.03737428]
[1763228760354,0.04324,96134.0,96133.0,0.044216]
[1763228762273,0.002,96142.0,96133.0,0.044216]
[1763228762274,0.04524,96142.0,96141.0,0.04406]
[1763228762464,0.04424,96142.0,96141.0,0.08154564]
[1763228762757,0.04324,96142.0,96141.0,0.08154564]
[1763228763261,0.04424,96142.0,96141.0,0.08154564]
[1763228763859,0.04524,96142.0,96141.0,0.08154564]
[1763228764162,0.04524,96142.0,96141.0,0.04406]
[1763228765451,0.04524,96142.0,96141.0,0.08154564]
[1763228766356,0.04524,96142.0,96141.0,0.04406]
[1763228768862,0.04524,96142.0,96141.0,0.08154564]
[1763228769068,0.04524,96142.0,96141.0,0.04406]
[1763228771861,0.02375,96142.0,96141.0,0.04406]
[1763228772459,0.002,96142.0,96141.0,0.04406]
[1763228772777,0.02497,96142.0,96141.0,0.04406]
[1763228772960,0.02497,96142.0,96141.0,0.10023424]
[1763228774564,0.02497,96142.0,96141.0,0.04406]
[1763228774963,0.005,96156.0,96140.0,0.06963424]
[1763228774964,0.005,96156.0,96155.0,0.04314]
[1763228775170,0.005,96156.0,96155.0,0.46014421]
[1763228775365,0.005,96156.0,96155.0,0.40394]
[1763228775564,0.005,96156.0,96155.0,0.5080172]
[1763228775774,0.005,96156.0,96155.0,0.40394]
[1763228776262,0.3608,96165.0,96160.0,0.1040714]
[1763228776459,0.00025997,96166.0,96165.0,0.05683]
[1763228777067,0.00025997,96166.0,96165.0,0.41763]
[1763228777876,0.00025997,96166.0,96165.0,0.45501263]
[1763228778070,0.00025997,96166.0,96165.0,0.41763]
[1763228778574,0.38377,96183.0,96182.0,0.04314]
[1763228779474,0.3608,96193.0,96192.0,0.04314]
[1763228779665,0.01527485,96196.0,96195.0,0.05683]
[1763228779666,0.03824485,96196.0,96195.0,0.05683]
[1763228779873,0.05021,96196.0,96195.0,0.05683]
[1763228780970,0.005,96196.0,96195.0,0.05683]
[1763228781669,0.007,96196.0,96195.0,0.05683]
[1763228783486,0.00025986,96206.0,96205.0,0.04314]
[1763228783685,0.00025986,96206.0,96205.0,0.40394]
[1763228784292,0.3608,96226.0,96205.0,0.40394]
[1763228784494,0.40601,96226.0,96225.0,0.04314]
[1763228785582,0.40601,96226.0,96216.0,0.17633914]
[1763228785583,0.04521,96217.0,96216.0,0.0001559]
[1763228785784,0.40601,96217.0,96216.0,0.0001559]
[1763228787690,0.40701,96217.0,96216.0,0.0432959]
[1763228788395,0.40701,96217.0,96216.0,0.0570859]
[1763228789999,0.40701,96217.0,96198.0,0.01369]
[1763228790000,0.04498,96196.0,96195.0,0.40671]
[1763228791094,0.04598,96196.0,96195.0,0.40671]
[1763228791300,0.02415,96196.0,96195.0,0.40671]
[1763228791495,0.001,96196.0,96195.0,0.40671]
[1763228792495,0.00015558,96205.0,96195.0,0.40671]
[1763228792496,0.00015558,96205.0,96204.0,0.04591]
[1763228792690,0.00015558,96205.0,96204.0,0.40671]
[1763228793196,0.3608,96230.0,96216.0,0.04591]
[1763228793598,0.40797803,96230.0,96229.0,0.02304]
[1763228793799,0.40797803,96230.0,96215.0,0.01379]
[1763228794000,0.04498,96216.0,96215.0,0.0597]
[1763228794899,0.38395,96222.0,96221.0,0.04591]
[1763228795290,0.40578,96222.0,96221.0,0.04591]
[1763228795690,0.04498,96222.0,96221.0,0.04591]
[1763228796500,0.02315,96222.0,96221.0,0.04591]
[1763228797001,0.04598,96222.0,96221.0,0.04591]
[1763228805095,0.04498,96214.0,96213.0,0.0231959]
[1763228805294,0.04498,96214.0,96213.0,0.0460659]
[1763228805501,0.40678,96222.0,96221.0,0.04591]
[1763228806004,0.40578,96222.0,96221.0,0.04591]
[1763228806503,0.00219803,96220.0,96216.0,0.02304]
[1763228806709,0.04498,96214.0,96213.0,0.0231959]
[1763228807009,0.04498,96214.0,96213.0,0.0460659]
[1763228808104,0.02315,96214.0,96213.0,0.0460659]
[1763228808412,0.04598,96222.0,96221.0,0.04591]
[1763228808606,0.04498,96222.0,96221.0,0.04591]
[1763228810201,0.04598,96222.0,96221.0,0.04591]
[1763228811512,0.04498,96218.0,96217.0,0.07393057]
[1763228811808,0.04498,96218.0,96215.0,0.01379]
[1763228811809,0.04498,96216.0,96215.0,0.02802057]
[1763228812001,0.04498,96216.0,96213.0,0.0001559]
[1763228812002,0.04498,96214.0,96213.0,0.0001559]
[1763228812205,0.40578,96214.0,96213.0,0.0001559]
[1763228813511,0.40678,96214.0,96213.0,0.0001559]
[1763228817202,0.40678,96214.0,96213.0,0.0231959]
[1763228817404,0.40678,96214.0,96213.0,0.0460659]
[1763228818010,0.001,96214.0,96213.0,0.0460659]
[1763228818405,0.001,96214.0,96213.0,0.08342679]
[1763228818606,0.001,96214.0,96213.0,0.0460659]
[1763228820408,0.3608,96232.0,96231.0,0.04507]
[1763228821410,0.005,96236.0,96235.0,0.04507]
[1763228823227,0.006,96236.0,96235.0,0.04507]
[1763228825311,0.00025975,96246.0,96245.0,0.04507]
[1763228825711,0.00025975,96246.0,96245.0,0.07306918]
[1763228826405,0.00025975,96246.0,96245.0,0.04507]
[1763228827321,0.00125975,96246.0,96245.0,0.04507]
[1763228827918,0.04394,96240.0,96238.0,0.02797541]
[1763228828108,0.04394,96240.0,96236.0,0.0001559]
[1763228828109,0.04394,96237.0,96236.0,0.0001559]
[1763228829323,0.01149803,96240.0,96222.0,0.02797541]
[1763228829324,0.05611,96224.0,96222.0,0.02797541]
[1763228829527,0.04394,96221.0,96220.0,0.14196282]
[1763228829820,0.40474,96226.0,96225.0,0.04507]
[1763228830224,0.38325,96226.0,96225.0,0.04507]
[1763228830421,0.3608,96226.0,96225.0,0.04507]
[1763228830824,0.38325,96226.0,96225.0,0.04507]
[1763228831814,0.38325,96226.0,96225.0,0.02288]
[1763228831815,0.40474,96226.0,96225.0,0.02288]
[1763228832029,0.0448,96221.0,96220.0,0.07323883]
[1763228832414,0.02268,96221.0,96220.0,0.07323883]
[1763228832628,0.4056,96226.0,96225.0,0.04526]
[1763228835731,0.00219803,96230.0,96225.0,0.04526]
[1763228835922,0.04699803,96230.0,96229.0,0.04526]
[1763228836227,0.02487803,96230.0,96229.0,0.04526]
[1763228836622,0.00219803,96230.0,96229.0,0.04526]
[1763228837232,0.4056,96242.0,96241.0,0.02259]
[1763228838018,0.3608,96242.0,96241.0,0.04526]
[1763228838219,0.00041565,96246.0,96245.0,0.04526]
[1763228838923,0.00041565,96246.0,96245.0,0.44339224]
[1763228839118,0.00041565,96246.0,96245.0,0.5100399]
[1763228839331,0.4056,96270.0,96269.0,0.04526]
[1763228839635,0.40779803,96270.0,96269.0,0.04526]
[1763228840426,0.04699803,96270.0,96269.0,0.04526]
[1763228840929,0.04699803,96270.0,96260.0,0.11414322]
[1763228840930,0.00219803,96270.0,96260.0,0.04541581]
[1763228841132,0.0448,96261.0,96260.0,0.15940322]
[1763228841437,0.0448,96261.0,96260.0,0.04541581]
[1763228843227,0.0448,96261.0,96260.0,0.04641581]
[1763228844327,0.0448,96261.0,96260.0,0.00115581]
[1763228844627,0.0448,96261.0,96260.0,0.04641581]
[1763228846033,0.0448,96261.0,96260.0,0.00115581]
[1763228846230,0.0448,96251.0,96250.0,0.11398741]
[1763228846434,0.0448,96245.0,96244.0,0.3608]
[1763228847030,0.0448,96245.0,96244.0,0.38339]
[1763228847226,0.0438,96245.0,96244.0,0.02259]
[1763228848036,0.04257,96236.0,96235.0,0.02808733]
[1763228848339,0.40237,96236.0,96235.0,0.00015581]
[1763228849240,0.40137,96236.0,96235.0,0.00015581]
[1763228849444,0.40137,96236.0,96235.0,0.00115581]
[1763228849628,0.40137,96236.0,96235.0,0.04494581]
[1763228849825,0.02339803,96240.0,96239.0,0.04379]
[1763228850541,0.04272552,96254.0,96239.0,0.3608]
[1763228850729,0.04272552,96254.0,96253.0,0.04379]
[1763228851939,0.04272552,96254.0,96253.0,0.02105]
[1763228852139,0.04476803,96250.0,96249.0,0.04379]
[1763228853442,0.04476803,96250.0,96249.0,0.04479]
[1763228855043,0.04476803,96250.0,96249.0,0.04579]
[1763228855839,0.04476803,96250.0,96249.0,0.002]
[1763228860240,0.04476803,96250.0,96236.0,0.11398741]
[1763228860241,0.04257,96237.0,96236.0,0.11398741]
[1763228860548,0.04257,96236.0,96227.0,0.11398741]
[1763228860752,0.40337,96236.0,96227.0,0.11398741]
[1763228861244,0.40337,96236.0,96225.0,0.02793654]
[1763228861432,0.04257,96226.0,96225.0,0.07172654]
[1763228861635,0.40337,96226.0,96225.0,0.04379]
[1763228862352,0.04257,96226.0,96225.0,0.04379]
[1763228865053,0.0212,96226.0,96225.0,0.04379]
[1763228865547,0.02339803,96230.0,96229.0,0.04379]
[1763228865744,0.00219803,96230.0,96229.0,0.40459]
[1763228866053,0.40337,96245.0,96244.0,0.02105]
[1763228866357,0.40337,96245.0,96244.0,0.04379]
[1763228866742,0.3608,96245.0,96244.0,0.04379]
[1763228867346,0.382,96245.0,96244.0,0.04379]
[1763228867950,0.40437,96245.0,96244.0,0.04379]
[1763228868250,0.0232,96245.0,96244.0,0.04379]
[1763228868952,0.04457,96245.0,96244.0,0.04379]
[1763228869249,0.002,96245.0,96244.0,0.04379]
[1763228869841,0.002,96245.0,96244.0,0.07173046]
[1763228870354,0.002,96245.0,96244.0,0.04379]
[1763228871956,0.04257,96242.0,96238.0,0.03726655]
[1763228872256,0.04257,96239.0,96238.0,0.04379]
[1763228872949,0.40337,96239.0,96238.0,0.02105]
[1763228873149,0.40337,96239.0,96236.0,0.03726563]
[1763228873352,0.04257,96235.0,96234.0,0.03726563]
[1763228873563,0.04476803,96230.0,96229.0,0.17230304]
[1763228873752,0.04476803,96230.0,96229.0,0.15777741]
[1763228874161,0.04476803,96230.0,96229.0,0.19504304]
[1763228874743,0.04476803,96230.0,96229.0,0.15777741]
[1763228874951,0.04476803,96230.0,96229.0,0.04379]
[1763228875150,0.04476803,96230.0,96229.0,0.08105563]
[1763228875461,0.04476803,96230.0,96229.0,0.04379]
[1763228880160,0.04476803,96230.0,96229.0,0.0573]
[1763228880960,0.00219803,96230.0,96229.0,0.0573]
[1763228881170,0.02348803,96230.0,96229.0,0.09456563]
[1763228881558,0.00219803,96230.0,96229.0,0.09456563]
[1763228881765,0.00219803,96230.0,96229.0,0.0573]
[1763228882171,0.04452803,96230.0,96229.0,0.0573]
[1763228883361,0.04452803,96230.0,96229.0,0.09456563]
[1763228883759,0.04452803,96230.0,96229.0,0.0573]
[1763228884068,0.04452803,96230.0,96229.0,0.09456563]
[1763228884265,0.04452803,96230.0,96229.0,0.0573]
[1763228884481,0.04452803,96230.0,96229.0,0.09456563]
[1763228884668,0.04452803,96230.0,96229.0,0.02105]
[1763228884862,0.04452803,96230.0,96228.0,0.03726563]
[1763228884863,0.04233,96227.0,96226.0,0.06026563]
[1763228885056,0.04233,96227.0,96226.0,0.023]
[1763228885258,0.04233,96227.0,96226.0,0.05101381]
[1763228885462,0.04233,96227.0,96226.0,0.023]
[1763228886066,0.00845581,96236.0,96220.0,0.15928433]
[1763228886067,0.00015581,96236.0,96235.0,0.04416]